{"text_format":"1","workbook":"xlsx","n_sheets":2,"sheets":["【調査票 11】自立援助","data"],"not_rendered":{"charts":0,"images":1,"macros":1,"external_links":0,"defined_names":1,"comments":0,"pivot_tables":0},"unopened":[],"bounds":{"document_bytes":16777216,"sheet_cells":100000,"rows_first":2000,"rows_last":500,"rows_between":2000,"halvings":0,"cell_chars":16384,"cell_head_chars":4096},"cells_cut":0,"cells_raw":0,"read":"whole","date_system":"1900"}

{"sheet":"【調査票 11】自立援助","index":0,"n_rows":112,"n_cols":98,"rows_kept":112,"cut":false,"hidden":false,"merged":[[15,30,15,35],[96,69,96,72],[94,41,94,59],[9,76,9,89],[12,76,12,89],[22,30,22,46],[44,46,44,62],[64,78,64,83],[8,68,10,74],[15,38,15,45],[15,49,15,52],[15,68,15,75],[15,79,15,82],[8,41,10,44],[15,60,15,65],[34,4,48,15],[51,4,53,15],[57,4,63,15],[14,1,67,3],[15,4,15,15],[17,4,23,15],[24,4,32,15],[69,1,82,3],[69,4,81,15],[69,36,73,46],[75,36,81,46],[82,4,82,15],[108,1,108,15],[111,1,115,15],[84,1,94,15],[99,1,101,15],[99,42,99,52],[100,42,100,52],[101,42,101,52],[103,1,105,15],[107,1,107,15],[0,1,0,89],[1,0,2,16],[4,1,4,89],[5,1,5,89],[8,1,10,9],[8,10,10,15],[8,16,10,21],[8,22,10,25],[8,26,10,29],[8,30,10,35],[8,36,10,40],[24,16,24,21],[24,56,29,67],[25,16,26,21],[27,16,29,21],[30,16,32,21]]}
[null,"令和４年度児童養護施設入所児童等調査"]
[]
[]
[]
[null,"児童自立生活援助事業（自立援助ホーム）入居児童票（管理者記入用）"]
[null,"（令和５年２月１日現在）",null,null,null,null,null,null,null,null,null,null,null,null,null,null,null,null,null,null,null,null,null,null,null,null,null,null,null,null,null,null,null,null,null,null,true]
[null,"　　　　　　　　　　　　　　　　　　　　　　　　　　　　　　　　　　　　　　　"]
[]
[null,"都道府県\n指定都市\n中核市\n児童相談所設置市\n（番号）",null,null,null,null,null,null,null,null,null,null,null,null,null,null,"事業所\n番号",null,null,null,null,null,null,null,null,null,"児童\n\n番号",null,null,null,null,null,null,null,null,null,"調査票\n\n種別",null,null,null,null,11,null,null,null,null,null,null,null,null,null,null,null,null,null,null,null,null,null,null,null,null,null,null,null,null,null,null,"都道府県\n指定都市\n中 核 市\n児童相談所設置市\n（名称）"]
[]
[]
[]
[null,null,null,null,null,null,null,null,null,null,null,null,null,null,null,null,null,null,null,null,null,null,null,null,null,null,null,null,null,null,null,null,null,null,null,null,null,null,null,null,null,null,null,null,null,null,null,null,null,null,null,null,null,null,null,null,null,null,null,null,null,null,null,null,null,null,null,null,"児童相談所名"]
[]
[null,"児童の現在の状況",null,null,null,null,null,null,null,null,null,null,null,null,null,null,null,null,null,null,null,null,null,null,null,null,null,null,null,null,null,null,null,null,null,null,null,null,null,null,null,null,null,null,null,null,null,null,null,null,null,null,null,null,null,null,null,null,null,null,null,null,null,null,null,null,null,null,null,null,null,null,null,null,null,null,null,null,null,null,null,null,null,null,null,null,null,null,null,null,null,null,null,null,null,null,"出生年月",{"$f":"AM16&RIGHT(100+ AX16,2)","v":"00"}]
[null,null,null,null,"(1)\n性別",null,null,null,null,null,null,null,null,null,null,null,null,null,"0",null,null,null,null,null,null,null,null,null,null,null,"(2)\n出生年月",null,null,null,null,null,null,"西暦",null,null,null,null,null,null,null,null,"年",null,null,null,null,null,null,"月",null,null,null,null,null,null,"(3)\n入居年月",null,null,null,null,null,null,"西暦",null,null,null,null,null,null,null,null,"年",null,null,null,null,null,null,"月",null,null,null,null,null,null,null,null,null,null,null,null,"入居年月",{"$f":"BQ16&RIGHT(100+ CB16,2)","v":"00"}]
[]
[null,null,null,null,"(4)\n入居経路"]
[]
[]
[]
[]
[null,null,null,null,null,null,null,null,null,null,null,null,null,null,null,null,null,null,null,null,null,null,null,null,null,null,null,null,null,null,null,null,null,null,null,null,null,null,null,null,null,null,null,null,null,null,null,")"]
[]
[null,null,null,null,"(5)\n就学及び\n就職状況",null,null,null,null,null,null,null,null,null,null,null,"中学校",null,null,null,null,null,null,null,null,null,null,null,null,null,null,null,null,null,null,null,null,null,null,null,null,null,null,null,null,null,null,null,null,null,null,null,null,null,null,null,"(5) 就学及び就職状況の「01 中学１年」～「05 私立高校」の補問"]
[null,null,null,null,null,null,null,null,null,null,null,null,null,null,null,null,"中学卒"]
[]
[null,null,null,null,null,null,null,null,null,null,null,null,null,null,null,null,"高校卒"]
[]
[]
[]
[]
[]
[]
[null,null,null,null,"(6)\n心身の状況\n\n(複数回答可)",null,null,null,null,null,null,null,null,null,null,null,null,null,false]
[]
[null,null,null,null,null,null,null,null,null,null,null,null,null,null,null,null,null,null,false,null,null,null,null,null,null,null,null,null,null,null,null,null,null,null,null,null,false,null,null,null,null,null,null,null,null,null,null,null,null,null,null,null,null,false,null,null,null,null,null,null,null,null,null,null,null,null,null,null,null,false]
[]
[null,null,null,null,null,null,null,null,null,null,null,null,null,null,null,null,null,null,false,null,null,null,null,null,null,null,null,null,null,null,null,null,null,null,null,null,false,null,null,null,null,null,null,null,null,null,null,null,null,null,null,null,null,false,null,null,null,null,null,null,null,null,null,null,null,null,null,null,null,false]
[]
[null,null,null,null,null,null,null,null,null,null,null,null,null,null,null,null,null,null,false,null,null,null,null,null,null,null,null,null,null,null,null,null,null,null,null,null,false,null,null,null,null,null,null,null,null,null,null,null,null,null,null,null,null,null,null,null,null,null,false]
[]
[null,null,null,null,null,null,null,null,null,null,null,null,null,null,null,null,null,null,false,null,null,null,null,null,null,null,null,null,null,null,null,null,null,null,null,null,null,null,null,null,null,null,null,null,null,null,false,null,null,null,null,null,null,null,null,false,null,null,null,null,null,null,null,null,null,null,null,null,null,false]
[]
[null,null,null,null,null,null,null,null,null,null,null,null,null,null,null,null,null,null,false,null,null,null,null,null,null,null,null,null,null,null,null,null,null,null,null,null,false,null,null,null,null,null,null,null,null,null,null,null,null,null,null,null,null,null,null,null,null,null,null,null,null,null,null,")"]
[]
[null,null,null,null,null,null,null,null,null,null,null,null,null,null,null,null,null,null,false]
[]
[null,null,null,null,null,null,null,null,null,null,null,null,null,null,null,null,null,null,false]
[]
[]
[null,null,null,null,"(7)\n罹病傾向\n(複数回答可)",null,null,null,null,null,null,null,null,null,null,null,null,null,false,null,null,null,null,null,null,null,null,null,null,null,null,null,null,null,null,false,null,null,null,null,null,null,null,null,null,null,null,null,null,null,null,null,null,false,null,null,null,null,null,null,null,null,null,null,null,null,null,false]
[]
[null,null,null,null,null,null,null,null,null,null,null,null,null,null,null,null,null,null,false,null,null,null,null,null,null,null,null,null,null,null,null,null,null,null,null,false,null,null,null,null,null,null,null,null,null,null,null,null,null,null,null,null,null,false]
[]
[]
[null,null,null,null,null,null,null,null,null,null,null,null,null,null,null,null,null,null,false,null,null,null,null,null,null,null,null,null,null,null,null,null,null,null,null,null,false,null,null,null,null,null,null,null,null,null,null,null,null,null,null,null,null,false,null,null,null,null,null,null,null,null,null,null,null,null,null,null,null,null,null,null,false]
[null,null,null,null,"(8)\n特に支援上\n留意している点\n\n(複数回答可)"]
[null,null,null,null,null,null,null,null,null,null,null,null,null,null,null,null,null,null,false,null,null,null,null,null,null,null,null,null,null,null,null,null,null,null,null,null,false,null,null,null,null,null,null,null,null,null,null,null,null,null,null,null,null,false,null,null,null,null,null,null,null,null,null,null,null,null,null,null,null,null,null,null,false]
[]
[null,null,null,null,null,null,null,null,null,null,null,null,null,null,null,null,null,null,false,null,null,null,null,null,null,null,null,null,null,null,null,null,null,null,null,null,false,null,null,null,null,null,null,null,null,null,null,null,null,null,null,null,null,false,null,null,null,null,null,null,null,null,null,null,null,null,null,null,null,null,null,null,false]
[]
[null,null,null,null,null,null,null,null,null,null,null,null,null,null,null,null,null,null,false,null,null,null,null,null,null,null,null,null,null,null,null,null,null,null,null,null,false,null,null,null,null,null,null,null,null,null,null,null,null,null,null,null,null,false,null,null,null,null,null,null,null,null,null,null,null,null,null,null,null,null,null,null,false]
[]
[null,null,null,null,null,null,null,null,null,null,null,null,null,null,null,null,null,null,false,null,null,null,null,null,null,null,null,null,null,null,null,null,null,null,null,null,false,null,null,null,null,null,null,null,null,null,null,null,null,null,null,null,null,false,null,null,null,null,null,null,null,null,null,null,null,null,null,null,null,null,null,null,false,null,null,null,null,null,null,null,null,null,null,null,")"]
[]
[null,null,null,null,null,null,null,null,null,null,null,null,null,null,null,null,null,null,false]
[]
[]
[null,"入居時の家庭の状況",null,null,"(9)\n保護者の状況",null,null,null,null,null,null,null,null,null,null,null,null,null,null,null,null,null,null,null,null,null,null,null,null,null,null,null,null,null,null,null,"(9)の両親又は父母のどちらかありの補問"]
[]
[]
[]
[]
[]
[null,null,null,null,null,null,null,null,null,null,null,null,null,null,null,null,null,null,null,null,null,null,null,null,null,null,null,null,null,null,null,null,null,null,null,null,"(9)の両親ともいない又は不明の補問"]
[]
[]
[]
[]
[]
[]
[null,null,null,null,"(10)\n課税状況",null,null,null,null,null,null,null,null,null,null,null,null,null,0]
[]
[null,"(11)\n養護問題発生理由\n(複数回答可)",null,null,null,null,null,null,null,null,null,null,null,null,null,null,null,null,false,null,null,null,null,null,null,null,null,null,null,null,null,null,null,null,null,false,null,null,null,null,null,null,null,null,null,null,null,null,null,null,false,null,null,null,null,null,null,null,null,null,null,null,null,null,null,null,null,false,null,null,null,null,null,null,null,null,null,null,null,null,null,null,null,null,false]
[]
[null,null,null,null,null,null,null,null,null,null,null,null,null,null,null,null,null,null,false,null,null,null,null,null,null,null,null,null,null,null,null,null,null,null,null,false,null,null,null,null,null,null,null,null,null,null,null,null,null,null,false,null,null,null,null,null,null,null,null,null,null,null,null,null,null,null,null,false,null,null,null,null,null,null,null,null,null,null,null,null,null,null,null,null,false]
[]
[null,null,null,null,null,null,null,null,null,null,null,null,null,null,null,null,null,null,false,null,null,null,null,null,null,null,null,null,null,null,null,null,null,null,null,false,null,null,null,null,null,null,null,null,null,null,null,null,null,null,false,null,null,null,null,null,null,null,null,null,null,null,null,null,null,null,null,false,null,null,null,null,null,null,null,null,null,null,null,null,null,null,null,null,false]
[]
[null,null,null,null,null,null,null,null,null,null,null,null,null,null,null,null,null,null,false,null,null,null,null,null,null,null,null,null,null,null,null,null,null,null,null,false,null,null,null,null,null,null,null,null,null,null,null,null,null,null,false,null,null,null,null,null,null,null,null,null,null,null,null,null,null,null,null,false,null,null,null,null,null,null,null,null,null,null,null,null,null,null,null,null,false]
[]
[null,null,null,null,null,null,null,null,null,null,null,null,null,null,null,null,null,null,false,null,null,null,null,null,null,null,null,null,null,null,null,null,null,null,null,false,null,null,null,null,null,null,null,null,null,null,null,null,null,null,false,null,null,null,null,null,null,null,null,null,null,null,null,null,null,null,null,false]
[]
[null,null,null,null,null,null,null,null,null,null,null,null,null,null,null,null,null,null,false,null,null,null,null,null,null,null,null,null,null,null,null,null,null,null,null,false,null,null,null,null,null,null,null,null,null,null,null,null,null,null,null,null,null,null,null,null,null,null,null,null,")"]
[]
[null,null,null,null,null,null,null,null,null,null,null,null,null,null,null,null,null,null,null,null,null,null,null,null,null,null,null,null,null,null,null,null,null,null,null,null,null,null,null,null,null,null,null,null,null,null,null,"選択したもののうち、主な理由１つ"]
[]
[]
[null,"(12)\n被虐待経験の状況",null,null,null,null,null,null,null,null,null,null,null,null,null,null,null,null,null,null,null,null,null,null,null,null,null,null,null,null,null,null,null,null,null,null,null,null,null,null,null,null,"(18)の補問",null,null,null,null,null,null,null,null,null,null,null,null,null,null,null,null,null,false,null,null,null,null,null,null,null,null,null,null,null,null,false]
[null,null,null,null,null,null,null,null,null,null,null,null,null,null,null,null,null,null,null,null,null,null,null,null,null,null,null,null,null,null,null,null,null,null,null,null,null,null,null,null,null,null,"　虐待の種類"]
[null,null,null,null,null,null,null,null,null,null,null,null,null,null,null,null,null,null,null,null,null,null,null,null,null,null,null,null,null,null,null,null,null,null,null,null,null,null,null,null,null,null,"（複数回答可）",null,null,null,null,null,null,null,null,null,null,null,null,null,null,null,null,null,false,null,null,null,null,null,null,null,null,null,null,null,null,false]
[]
[null,"(13)\n現在の家族との関係"]
[null,null,null,null,null,null,null,null,null,null,null,null,null,null,null,null,null,"交流あり　（  ",null,null,null,null,null,null,null,null,null,null,null,null,null,null,null,null,null,null,null,null,null,null,null,null,null,null,null,null,null,null,null,null,null,null,null,null,null,null,null,null,")"]
[]
[]
[null,"(13)の補問"]
[null,"家族との交流の頻度"]
[]
[]
[null,"(14)\n児童の今後の見通し"]

{"sheet":"data","index":1,"n_rows":5,"n_cols":106,"rows_kept":5,"cut":false,"hidden":true,"merged":[[2,105,3,105],[2,44,2,65],[1,44,1,65],[1,66,1,68],[2,66,3,66],[2,67,3,67],[2,68,3,68],[2,69,3,69],[1,70,1,97],[2,70,2,97],[1,98,1,102],[1,103,1,104],[2,98,3,98],[2,99,2,102],[2,103,3,103],[2,104,3,104],[1,37,1,43],[2,37,2,43],[2,7,3,7],[1,8,1,9],[1,10,1,11],[2,8,2,9],[2,10,2,11],[1,12,1,13],[2,12,3,12],[2,13,3,13],[2,14,3,14],[1,14,1,15],[2,15,3,15],[1,16,1,36],[2,16,2,36],[1,0,3,0],[1,1,1,6],[2,1,3,1],[2,2,3,2],[2,3,3,3],[2,4,3,4],[2,5,3,5],[2,6,3,6]]}
[]
["項目","KEY番号",null,null,null,null,null,"質問１","質問２",null,"質問３",null,"質問４",null,"質問５",null,"質問６",null,null,null,null,null,null,null,null,null,null,null,null,null,null,null,null,null,null,null,null,"質問７",null,null,null,null,null,null,"質問８",null,null,null,null,null,null,null,null,null,null,null,null,null,null,null,null,null,null,null,null,null,"質問９",null,null,"質問10","質問11",null,null,null,null,null,null,null,null,null,null,null,null,null,null,null,null,null,null,null,null,null,null,null,null,null,null,null,"質問12",null,null,null,null,"質問13",null,"質問14"]
[null,"都道府県・指定都市・中核市・児童相談所設置市番号","施設番号","児童番号","調査票種別","自治体名","施設名","性別","出生年月",null,"委託年月",null,"入所経路","具体的に","就学及び就職状況","補問","心身の状況",null,null,null,null,null,null,null,null,null,null,null,null,null,null,null,null,null,null,null,null,"罹病傾向",null,null,null,null,null,null,"特に支援上留意している点",null,null,null,null,null,null,null,null,null,null,null,null,null,null,null,null,null,null,null,null,null,"保護者の状況","補問1","補問2","課税状況","養護問題発生理由",null,null,null,null,null,null,null,null,null,null,null,null,null,null,null,null,null,null,null,null,null,null,null,null,null,null,null,"被虐待経験の状況","補問",null,null,null,"現在の家族との関係","補問","児童の今後の見通し"]
[null,null,null,null,null,null,null,null,"年","月","年","月",null,null,null,null,"01","02","03","04","05","06","07","08","09","10","11","12","13","14","15","16","17","18","19","20","その他障害",1,2,3,4,5,6,7,"01","02","03","04","05","06","07","08","09","10","11","12","13","14","15","16","17","18","19","20","21","その他フリーワード",null,null,null,null,"01","02","03","04","05","06","07","08","09","10","11","12","13","14","15","16","17","18","19","20","21","22","23","24","25","26","その他フリーワード","補問",null,1,2,3,4]
["回答",{"$f":"'【調査票 11】自立援助'!$K$9","v":0},{"$f":"'【調査票 11】自立援助'!$W$9","v":0},{"$f":"'【調査票 11】自立援助'!$AE$9","v":0},{"$f":"'【調査票 11】自立援助'!$AP$9","v":11},{"$f":"'【調査票 11】自立援助'!$BY$10","v":0},{"$f":"'【調査票 11】自立援助'!$BY$13","v":0},{"$f":"'【調査票 11】自立援助'!$S$16","v":"0"},{"$f":"'【調査票 11】自立援助'!$AM$16","v":0},{"$f":"'【調査票 11】自立援助'!$AX$16","v":0},{"$f":"'【調査票 11】自立援助'!$BQ$16","v":0},{"$f":"'【調査票 11】自立援助'!$CB$16","v":0},{"$f":"'【調査票 11】自立援助'!$T$19","v":0},{"$f":"'【調査票 11】自立援助'!$AE$23","v":0},{"$f":"'【調査票 11】自立援助'!$Y$25","v":0},{"$f":"'【調査票 11】自立援助'!$BR$25","v":0},{"$f":"IF('【調査票 11】自立援助'!$S$35=FALSE,0,1)","v":0},{"$f":"IF('【調査票 11】自立援助'!$S$37=FALSE,0,1)","v":0},{"$f":"IF('【調査票 11】自立援助'!$AK$37=FALSE,0,1)","v":0},{"$f":"IF('【調査票 11】自立援助'!$BB$37=FALSE,0,1)","v":0},{"$f":"IF('【調査票 11】自立援助'!$BR$37=FALSE,0,1)","v":0},{"$f":"IF('【調査票 11】自立援助'!$S$39=FALSE,0,1)","v":0},{"$f":"IF('【調査票 11】自立援助'!$AK$39=FALSE,0,1)","v":0},{"$f":"IF('【調査票 11】自立援助'!$BB$39=FALSE,0,1)","v":0},{"$f":"IF('【調査票 11】自立援助'!$BR$39=FALSE,0,1)","v":0},{"$f":"IF('【調査票 11】自立援助'!$S$41=FALSE,0,1)","v":0},{"$f":"IF('【調査票 11】自立援助'!$AK$41=FALSE,0,1)","v":0},{"$f":"IF('【調査票 11】自立援助'!$BG$41=FALSE,0,1)","v":0},{"$f":"IF('【調査票 11】自立援助'!$S$43=FALSE,0,1)","v":0},{"$f":"IF('【調査票 11】自立援助'!$AU$43=FALSE,0,1)","v":0},{"$f":"IF('【調査票 11】自立援助'!$BD$43=FALSE,0,1)","v":0},{"$f":"IF('【調査票 11】自立援助'!$BR$43=FALSE,0,1)","v":0},{"$f":"IF('【調査票 11】自立援助'!$S$45=FALSE,0,1)","v":0},{"$f":"IF('【調査票 11】自立援助'!$AK$45=FALSE,0,1)","v":0},{"$f":"IF('【調査票 11】自立援助'!$S$47=FALSE,0,1)","v":0},{"$f":"IF('【調査票 11】自立援助'!$S$49=FALSE,0,1)","v":0},{"$f":"'【調査票 11】自立援助'!$AU$45","v":0},{"$f":"IF('【調査票 11】自立援助'!$S$52=FALSE,0,1)","v":0},{"$f":"IF('【調査票 11】自立援助'!$AJ$52=FALSE,0,1)","v":0},{"$f":"IF('【調査票 11】自立援助'!$BB$52=FALSE,0,1)","v":0},{"$f":"IF('【調査票 11】自立援助'!$BP$52=FALSE,0,1)","v":0},{"$f":"IF('【調査票 11】自立援助'!$S$54=FALSE,0,1)","v":0},{"$f":"IF('【調査票 11】自立援助'!$AJ$54=FALSE,0,1)","v":0},{"$f":"IF('【調査票 11】自立援助'!$BB$54=FALSE,0,1)","v":0},{"$f":"IF('【調査票 11】自立援助'!$S$57=FALSE,0,1)","v":0},{"$f":"IF('【調査票 11】自立援助'!$AK$57=FALSE,0,1)","v":0},{"$f":"IF('【調査票 11】自立援助'!$BB$57=FALSE,0,1)","v":0},{"$f":"IF('【調査票 11】自立援助'!$BU$57=FALSE,0,1)","v":0},{"$f":"IF('【調査票 11】自立援助'!$S$59=FALSE,0,1)","v":0},{"$f":"IF('【調査票 11】自立援助'!$AK$59=FALSE,0,1)","v":0},{"$f":"IF('【調査票 11】自立援助'!$BB$59=FALSE,0,1)","v":0},{"$f":"IF('【調査票 11】自立援助'!$BU$59=FALSE,0,1)","v":0},{"$f":"IF('【調査票 11】自立援助'!$S$61=FALSE,0,1)","v":0},{"$f":"IF('【調査票 11】自立援助'!$AK$61=FALSE,0,1)","v":0},{"$f":"IF('【調査票 11】自立援助'!$BB$61=FALSE,0,1)","v":0},{"$f":"IF('【調査票 11】自立援助'!$BU$61=FALSE,0,1)","v":0},{"$f":"IF('【調査票 11】自立援助'!$S$63=FALSE,0,1)","v":0},{"$f":"IF('【調査票 11】自立援助'!$AK$63=FALSE,0,1)","v":0},{"$f":"IF('【調査票 11】自立援助'!$BB$63=FALSE,0,1)","v":0},{"$f":"IF('【調査票 11】自立援助'!$BU$63=FALSE,0,1)","v":0},{"$f":"IF('【調査票 11】自立援助'!$S$65=FALSE,0,1)","v":0},{"$f":"IF('【調査票 11】自立援助'!$AK$65=FALSE,0,1)","v":0},{"$f":"IF('【調査票 11】自立援助'!$BB$65=FALSE,0,1)","v":0},{"$f":"IF('【調査票 11】自立援助'!$BU$65=FALSE,0,1)","v":0},{"$f":"IF('【調査票 11】自立援助'!$S$67=FALSE,0,1)","v":0},{"$f":"'【調査票 11】自立援助'!$CA$65","v":0},{"$f":"'【調査票 11】自立援助'!$S$72","v":0},{"$f":"'【調査票 11】自立援助'!$AX$70","v":0},{"$f":"'【調査票 11】自立援助'!$AX$77","v":0},{"$f":"'【調査票 11】自立援助'!$S$83","v":0},{"$f":"IF('【調査票 11】自立援助'!$S$85=FALSE,0,1)","v":0},{"$f":"IF('【調査票 11】自立援助'!$AJ$85=FALSE,0,1)","v":0},{"$f":"IF('【調査票 11】自立援助'!$AY$85=FALSE,0,1)","v":0},{"$f":"IF('【調査票 11】自立援助'!$BP$85=FALSE,0,1)","v":0},{"$f":"IF('【調査票 11】自立援助'!$CG$85=FALSE,0,1)","v":0},{"$f":"IF('【調査票 11】自立援助'!$S$87=FALSE,0,1)","v":0},{"$f":"IF('【調査票 11】自立援助'!$AJ$87=FALSE,0,1)","v":0},{"$f":"IF('【調査票 11】自立援助'!$AY$87=FALSE,0,1)","v":0},{"$f":"IF('【調査票 11】自立援助'!$BP$87=FALSE,0,1)","v":0},{"$f":"IF('【調査票 11】自立援助'!$CG$87=FALSE,0,1)","v":0},{"$f":"IF('【調査票 11】自立援助'!$S$89=FALSE,0,1)","v":0},{"$f":"IF('【調査票 11】自立援助'!$AJ$89=FALSE,0,1)","v":0},{"$f":"IF('【調査票 11】自立援助'!$AY$89=FALSE,0,1)","v":0},{"$f":"IF('【調査票 11】自立援助'!$BP$89=FALSE,0,1)","v":0},{"$f":"IF('【調査票 11】自立援助'!$CG$89=FALSE,0,1)","v":0},{"$f":"IF('【調査票 11】自立援助'!$S$91=FALSE,0,1)","v":0},{"$f":"IF('【調査票 11】自立援助'!$AJ$91=FALSE,0,1)","v":0},{"$f":"IF('【調査票 11】自立援助'!$AY$91=FALSE,0,1)","v":0},{"$f":"IF('【調査票 11】自立援助'!$BP$91=FALSE,0,1)","v":0},{"$f":"IF('【調査票 11】自立援助'!$CG$91=FALSE,0,1)","v":0},{"$f":"IF('【調査票 11】自立援助'!$S$93=FALSE,0,1)","v":0},{"$f":"IF('【調査票 11】自立援助'!$AJ$93=FALSE,0,1)","v":0},{"$f":"IF('【調査票 11】自立援助'!$AY$93=FALSE,0,1)","v":0},{"$f":"IF('【調査票 11】自立援助'!$BP$93=FALSE,0,1)","v":0},{"$f":"IF('【調査票 11】自立援助'!$S$95=FALSE,0,1)","v":0},{"$f":"IF('【調査票 11】自立援助'!$AJ$95=FALSE,0,1)","v":0},{"$f":"'【調査票 11】自立援助'!$AP$95","v":0},{"$f":"'【調査票 11】自立援助'!$BR$97","v":0},{"$f":"'【調査票 11】自立援助'!$S$100","v":0},{"$f":"IF('【調査票 11】自立援助'!$BI$100=FALSE,0,1)","v":0},{"$f":"IF('【調査票 11】自立援助'!$BV$100=FALSE,0,1)","v":0},{"$f":"IF('【調査票 11】自立援助'!$BI$102=FALSE,0,1)","v":0},{"$f":"IF('【調査票 11】自立援助'!$BV$102=FALSE,0,1)","v":0},{"$f":"'【調査票 11】自立援助'!$AA$105","v":0},{"$f":"'【調査票 11】自立援助'!$S$109","v":0},{"$f":"'【調査票 11】自立援助'!$S$112","v":0}]